fUST/lending_fUST_20240708
["ID","MTS","AMOUNT","RATE_DAILY","PERIOD"]
[331434568,1720404639599,-559.80367682,0.00061739,120]
[331434569,1720404639610,-559.80367682,0.00061739,120]
[331434570,1720404639622,-559.80367682,0.00061739,120]
[331434571,1720404639633,-559.80367682,0.00061739,120]
[331434572,1720404639644,-559.80367682,0.00061739,120]
[331434573,1720404639661,-559.80367682,0.00061739,120]
[331434574,1720404639672,-559.80367682,0.00061739,120]
[331434575,1720404639685,-559.80367682,0.00061739,120]
[331434576,1720404639696,-559.80367682,0.00061739,120]
[331434577,1720404639708,-559.80367682,0.00061739,120]
[331434578,1720404639719,-559.80367682,0.00061739,120]
[331434579,1720404639730,-559.80367682,0.00061739,120]
[331434580,1720404639740,-559.80367682,0.00061739,120]
[331434581,1720404639858,-559.80367682,0.00061739,120]
[331434582,1720404639869,-559.80367682,0.00061739,120]
[331434583,1720404639880,-559.80367682,0.00061739,120]
[331434584,1720404639890,-559.80367682,0.00061739,120]
[331434585,1720404639900,-503.83586106,0.00062321,10]
[331434586,1720404639911,-6282.62192987,0.00062411,3]
[331434587,1720404640324,-418.29392795,0.00062411,3]
[331434886,1720404644124,-314.91495774,0.00039999,2]
[331434888,1720404644138,-325.61345466,0.00054793,120]
[331434890,1720404644148,-249.35671403,0.00054793,7]
[331434892,1720404644157,-500.0,0.00054795,120]
[331434894,1720404644166,-500.0,0.00054795,120]
[331434896,1720404644177,-298.63960341,0.00054795,120]
[331434898,1720404644187,-426.02456741,0.00061302,120]
[331436691,1720404962565,168.903871,0.00021096,2]
[331436692,1720404995519,1844.090407,0.00021096,2]
[331436694,1720405081151,14806.16588478,0.00034999,4]
[331436698,1720405330117,-1569.17025542,0.00034672,4]
[331436699,1720405330143,-284.48602988,0.00034999,3]
[331436700,1720405431581,283.52450102,0.00034999,3]
[331436702,1720405450660,451.93453452,0.00034999,4]
[331436703,1720405455204,186.86247041,0.00034999,4]
[331436704,1720405461438,155.28009208,0.00034999,20]
[331436707,1720405518579,284.48602988,0.00034999,3]
[331436708,1720405530041,171.751585,0.00021096,2]
[331436709,1720405531180,-168.903871,0.00037652,2]
[331436710,1720405531207,-330.59022081,0.00038641,30]
[331436711,1720405531226,-492.47140658,0.00039393,2]
[331436712,1720405531247,-599.5599609,0.00039994,4]
[331436713,1720405531267,-74.33712042,0.00039999,4]
[331436714,1720405644112,-369.38176865,0.00037523,4]
[331436715,1720405736679,14928.87809058,0.00034999,4]
[331436716,1720405755116,-554.62,0.00038642,30]
[331436718,1720405755139,-2174.23024072,0.00039177,2]
[331436720,1720405755160,-209.44492491,0.00039393,4]
[331436721,1720405755183,-277.54856702,0.00039393,4]
[331436723,1720405755205,-151.0,0.0004,120]
[331436725,1720405755227,-151.0,0.0004,120]
[331436727,1720405755248,-198.01271432,0.00040229,2]
[331436728,1720405755269,-815.85780395,0.00040807,4]
[331436730,1720405755289,-883.46515125,0.00040807,4]
[331436731,1720405755311,-219.93570201,0.00041589,4]
[331436732,1720405755331,-155.06564544,0.00041589,4]
[331436733,1720405755352,-155.10844789,0.00041589,4]
[331436734,1720405755374,-200.0,0.00042392,30]
[331436735,1720405755395,-2207.91553816,0.00042422,20]
[331436736,1720405755415,-151.0,0.00042493,120]
[331436737,1720405755437,-67.6017668,0.00042499,2]
[331436738,1720405767327,-159.921154,0.00043103,2]
[331436739,1720405767347,-151.0,0.00044164,120]
[331436740,1720405767368,-171.751585,0.00044274,2]
[331436741,1720405767390,-151.0,0.00044986,120]
[331436742,1720405767409,-618.99346542,0.000458,30]
[331436743,1720405767429,-4799.84367265,0.00046307,2]
[331436801,1720405838648,-1688.97798101,0.00042422,4]
[331436803,1720405838659,-1963.91370705,0.00046307,2]
[331436805,1720405838669,-151.0,0.00047479,120]
[331436806,1720405838682,-167.628525,0.00047943,2]
[331436807,1720405838693,-683.0,0.00048302,30]
[331436808,1720405838702,-151.0,0.00048329,120]
[331436809,1720405838711,-157.59667048,0.00049108,30]
[331436810,1720405838721,-151.0,0.00049973,120]
[331436811,1720405838731,-286.86302831,0.0005,30]
[331436812,1720405838740,-533.81299865,0.0005,30]
[331436813,1720405838750,-150.0,0.00051,85]
[331436814,1720405838760,-157.59667048,0.00052176,60]
[331436815,1720405838769,-151.0,0.00052466,120]
[331436816,1720405838779,-151.0,0.00052493,120]
[331436817,1720405838788,-813.2432863,0.000528,2]
[331436818,1720405838798,-168.903871,0.00054207,2]
[331436819,1720405838808,-167.628525,0.00054478,2]
[331436820,1720405838818,-151.0,0.00054959,120]
[331436821,1720405838827,-157.59667048,0.0005543,120]
[331436822,1720405838837,-157.59667048,0.00055916,120]
[331436823,1720405838847,-691.49128645,0.00056337,120]
[331436824,1720405838856,-151.0,0.00056658,120]
[331436825,1720405838866,-160.0,0.00057266,3]
[331436826,1720405838875,-151.0,0.00057452,120]
[331436827,1720405838885,-157.59667048,0.00057801,120]
[331436828,1720405838895,-157.59667051,0.00058424,120]
[331436829,1720405838904,-683.0,0.00059302,120]
[331436830,1720405838914,-220.031802,0.00059474,28]
[331436831,1720405838926,-4976.9635584,0.0005952,120]
[331436832,1720405838936,-151.0,0.00059945,120]
[331436833,1720405838943,-4976.9635584,0.00059972,120]
[331436834,1720405838952,-500.0,0.00059999,120]
[331436835,1720405838961,-500.0,0.00059999,120]
[331436836,1720405838971,-481.41090466,0.00059999,120]
[331436837,1720405838981,-500.0,0.00059999,120]
[331436838,1720405838990,-430.52109189,0.00059999,120]
[331436840,1720405839000,-500.0,0.00059999,120]
[331436841,1720405839010,-500.0,0.00059999,120]
[331436842,1720405839019,-500.0,0.00059999,120]
[331436843,1720405839028,-500.0,0.00059999,120]
[331436844,1720405839038,-350.31235613,0.00059999,120]
[331436845,1720405839048,-500.0,0.00059999,120]
[331436846,1720405839058,-500.0,0.00059999,120]
[331436847,1720405839068,-500.0,0.00059999,7]
[331436848,1720405839078,-500.0,0.00059999,120]
[331436849,1720405839088,-500.0,0.00059999,120]
[331436850,1720405839098,-500.0,0.00059999,7]
[331436851,1720405839108,-500.0,0.00059999,120]
[331436852,1720405839118,-500.0,0.00059999,7]
[331436853,1720405839128,-500.0,0.00059999,120]
[331436854,1720405839138,-500.0,0.00059999,120]
[331436855,1720405839147,-500.0,0.00059999,120]
[331436856,1720405839158,-500.0,0.00059999,7]
[331436857,1720405839168,-500.0,0.00059999,120]
[331436858,1720405839180,-244.21042628,0.00059999,7]
[331436859,1720405839190,-500.0,0.00059999,120]
[331436860,1720405839200,-552.10613025,0.00059999,120]
[331436861,1720405839210,-500.0,0.00059999,120]
[331436862,1720405839221,-500.0,0.00059999,120]
[331436863,1720405839231,-500.0,0.00059999,120]
[331436864,1720405839241,-500.0,0.00059999,120]
[331436865,1720405839251,-500.0,0.00059999,120]
[331436866,1720405839261,-500.0,0.00059999,120]
[331436867,1720405839271,-500.0,0.00059999,120]
[331436868,1720405839281,-500.0,0.00059999,120]
[331436869,1720405839290,-500.0,0.00059999,120]
[331436870,1720405839300,-500.0,0.00059999,120]
[331436871,1720405839309,-500.0,0.00059999,120]
[331436872,1720405839319,-500.0,0.00059999,120]
[331436873,1720405839328,-500.0,0.00059999,120]
[331436874,1720405839337,-905.97,0.0006,120]
[331436875,1720405839347,-1000.0,0.0006,120]
[331436876,1720405839356,-1000.0,0.0006,120]
[331436877,1720405839365,-1272.6316697,0.0006,120]
[331436878,1720405839375,-150.0,0.00060125,120]
[331436879,1720405839384,-1405.0,0.00060125,120]
[331436880,1720405839394,-753.47144325,0.00060173,2]
[331436881,1720405839404,-4976.9635584,0.00060266,120]
[331436882,1720405839414,-500.0,0.00060273,120]
[331436883,1720405839425,-500.0,0.00060273,120]
[331436884,1720405839435,-500.0,0.00060273,120]
[331436885,1720405839444,-500.0,0.00060273,120]
[331436886,1720405839454,-500.0,0.00060273,120]
[331436887,1720405839464,-500.0,0.00060273,120]
[331436888,1720405839474,-501.55932347,0.00060273,120]
[331436889,1720405839484,-500.0,0.00060273,120]
[331436890,1720405839493,-500.0,0.00060273,120]
[331436891,1720405839503,-500.0,0.00060273,120]
[331436892,1720405839513,-500.0,0.00060273,120]
[331436893,1720405839527,-500.0,0.00060273,120]
[331436894,1720405839537,-500.0,0.00060273,120]
[331436895,1720405839546,-516.72668901,0.00060273,120]
[331436899,1720405839557,-502.13982082,0.00060273,120]
[331436901,1720405839566,-500.0,0.00060273,120]
[331436903,1720405839576,-517.8799069,0.00060273,120]
[331436904,1720405839586,-521.97593703,0.00060273,120]
[331436905,1720405839596,-511.33486168,0.00060273,120]
[331436918,1720405839819,-515.47317247,0.00060273,120]
[331436919,1720405839830,-506.94183632,0.00060273,120]
[331436920,1720405839840,-507.74835622,0.00060273,120]
[331436921,1720405839851,-500.0,0.00060273,2]
[331436922,1720405839861,-500.0,0.00060273,120]
[331436923,1720405839874,-500.0,0.00060273,120]
[331436924,1720405839885,-500.0,0.00060273,120]
[331436925,1720405839895,-500.0,0.00060273,120]
[331436926,1720405839907,-4851.13,0.00060273,120]
[331436931,1720405840003,-500.0,0.00060273,120]
[331436933,1720405840015,-506.93604909,0.00060273,120]
[331436935,1720405840026,-521.18,0.00060273,120]
[331436937,1720405840036,-2109.5,0.00060273,120]
[331436939,1720405840046,-509.85665657,0.00060273,120]
[331436941,1720405840057,-238.77980863,0.00060273,120]
[331436943,1720405840067,-514.23803187,0.00060273,120]
[331436945,1720405840077,-226.02081852,0.00060273,120]
[331436947,1720405840087,-513.33974616,0.00060273,120]
[331436949,1720405840098,-515.85036784,0.00060273,120]
[331436951,1720405840108,-500.0,0.00060273,120]
[331436953,1720405840120,-500.0,0.00060273,120]
[331436955,1720405840130,-2714.82,0.00060273,120]
[331436957,1720405840141,-500.0,0.00060273,120]
[331436959,1720405840152,-645.99,0.00060273,120]
[331436961,1720405840162,-1437.7,0.00060273,120]
[331436962,1720405840177,-516.01750948,0.00060273,120]
[331436964,1720405840188,-633.28004618,0.00060273,120]
[331436966,1720405840199,-500.0,0.00060273,120]
[331436968,1720405840210,-235.56290883,0.00060273,120]
[331436969,1720405840222,-4976.9635584,0.000603,120]
[331436970,1720405840233,-150.29238822,0.0006032,7]
[331436971,1720405840244,-4976.9635584,0.00060633,120]
[331436972,1720405840256,-753.47144325,0.00060665,2]
[331436973,1720405840267,-14859.1,0.00060777,3]
[331436974,1720405840278,-1806.12861046,0.00060777,7]
[331436975,1720405840289,-3751.96570265,0.00060787,120]
[331436976,1720405840300,-151.0,0.00060822,120]
[331436977,1720405840310,-17830.92,0.00060838,3]
[331436978,1720405840320,-1535.60938027,0.00060848,2]
[331436979,1720405840330,-21397.1,0.00060908,3]
[331436980,1720405840340,-22760.95,0.00060918,3]
[331436981,1720405840350,-1806.12861046,0.00060948,8]
[331436982,1720405840360,-2000.0,0.00060954,120]
[331436983,1720405840370,-2629.54444419,0.00061,120]
[331436984,1720405840380,-9208.6328,0.00061,120]
[331436985,1720405840391,-500.0,0.0006102,120]
[331436986,1720405840401,-4851.13,0.0006102,120]
[331436987,1720405840410,-564.60346803,0.0006102,120]
[331436988,1720405840425,-2109.5,0.0006102,120]
[331436989,1720405840435,-500.0,0.0006102,120]
[331436990,1720405840446,-2714.82,0.0006102,120]
[331436991,1720405840456,-500.0,0.0006102,120]
[331436992,1720405840467,-645.99,0.0006102,120]
[331436993,1720405840477,-1437.7,0.0006102,120]
[331436994,1720405840488,-275.63875747,0.0006102,120]
[331436995,1720405840498,-500.0,0.00061052,120]
[331436996,1720405840510,-4851.13,0.00061052,120]
[331436997,1720405840522,-2109.5,0.00061052,120]
[331436998,1720405840534,-500.0,0.00061052,120]
[331436999,1720405840544,-2714.82,0.00061052,120]
[331437000,1720405840556,-500.0,0.00061052,120]
[331437001,1720405840567,-645.99,0.00061052,120]
[331437002,1720405840577,-1437.7,0.00061052,120]
[331437003,1720405840588,-521.52,0.00061054,120]
[331437004,1720405840602,-500.0,0.00061054,120]
[331437005,1720405840614,-500.0,0.00061054,120]
[331437006,1720405840625,-517.09287822,0.00061054,120]
[331437007,1720405840635,-500.0,0.00061054,120]
[331437008,1720405840646,-500.0,0.00061054,120]
[331437009,1720405840656,-917.69,0.00061054,120]
[331437010,1720405840667,-894.5,0.00061054,120]
[331437011,1720405840681,-500.0,0.00061054,120]
[331437012,1720405840691,-500.0,0.00061054,120]
[331437013,1720405840701,-1236.56,0.00061054,120]
[331437014,1720405840711,-500.0,0.00061054,120]
[331437015,1720405840722,-503.53201359,0.00061054,120]
[331437016,1720405840732,-500.0,0.00061054,120]
[331437017,1720405840743,-500.0,0.00061054,120]
[331437018,1720405840753,-500.0,0.00061054,120]
[331437019,1720405840763,-500.0,0.00061054,120]
[331437020,1720405840773,-500.0,0.00061054,120]
[331437021,1720405840783,-2061.63,0.00061054,30]
[331437022,1720405840793,-500.0,0.00061054,120]
[331437023,1720405840802,-500.0,0.00061054,2]
[331437024,1720405840812,-4976.9635584,0.00061084,120]
[331437025,1720405840822,-18.94513441,0.00061156,2]
[331437101,1720405843368,-500.0,0.00060273,120]
[331437103,1720405843378,-2140.0,0.00060273,60]
[331437105,1720405843387,-513.5312704,0.00060273,120]
[331437107,1720405843396,-255.26140429,0.00060273,120]
[331437109,1720405843405,-462.53,0.00060828,30]
[331437111,1720405843415,-734.52630884,0.00061156,2]
[331437113,1720405843425,-1535.60938026,0.00061211,2]
[331437115,1720405843434,-1806.12861046,0.00061246,8]
[331437117,1720405843444,-500.0,0.00061255,120]
[331437119,1720405843453,-723.20736526,0.00061255,120]
[331437157,1720405843806,-556.19648732,0.00061255,120]
[331437182,1720406136721,170.211887,0.00021096,2]
[331437183,1720406136936,170.211887,0.00033973,2]
[331437186,1720406196713,225.53942994,0.00033973,4]
[331437187,1720406197254,577.75159908,0.00033973,4]
[331437188,1720406197647,169.60808381,0.00033973,4]
[331437189,1720406199888,220.51056512,0.00033973,4]
[331437190,1720406202844,605.52412605,0.00033973,30]
[331437191,1720406208574,1598.44335151,0.00033973,4]
[331437192,1720406209093,742.77445246,0.00033973,4]
[331437203,1720406751173,-257.7502026,0.0003624,2]
[331437204,1720406751194,-1202.34331483,0.00037587,60]
[331437206,1720406847101,-160.520466,0.00035384,2]
[331437207,1720406847122,-439.479534,0.00038,10]
[331437245,1720406920214,-142.90182377,0.00038,10]
[331437246,1720406959092,-668.92964396,0.00038264,30]
[331437247,1720406959113,-212.25557549,0.0003839,2]
[331437248,1720406959136,-382.0,0.00038489,3]
[331437249,1720406959156,-462.53,0.0003849,3]
[331437250,1720406959177,-12264.21,0.0003849,3]
[331437251,1720406959199,-10836.7716628,0.0003849,4]
[331437252,1720406959219,-464.84135493,0.00038499,15]
[331437253,1720406959242,-500.0,0.00038499,15]
[331437254,1720406959262,-208.32596228,0.00038499,15]
[331437255,1720406959282,-397.52820048,0.00038499,15]
[331437256,1720406959303,-500.0,0.00038499,15]
[331437257,1720406959324,-355.07231554,0.00038499,15]
[331437258,1720406959344,-500.0,0.00038499,15]
[331437259,1720406959364,-500.0,0.00038499,15]
[331437260,1720406959385,-500.0,0.00038499,7]
[331437261,1720406959404,-350.31235613,0.00038499,15]
[331437262,1720406959424,-500.0,0.00038499,7]
[331437263,1720406959444,-500.0,0.00038499,15]
[331437264,1720406959465,-500.0,0.00038499,7]
[331437265,1720406959487,-500.0,0.00038499,7]
[331437266,1720406959506,-500.0,0.00038499,15]
[331437267,1720406959527,-244.21042628,0.00038499,7]
[331437268,1720406959547,-480.52109189,0.00038499,15]
[331437269,1720406959568,-481.41090466,0.00038499,15]
[331437270,1720406959588,-500.0,0.00038499,15]
[331437271,1720406959608,-500.0,0.00038499,15]
[331437272,1720406959628,-500.0,0.00038499,15]
[331437273,1720406959648,-262.80361109,0.000385,2]
[331437274,1720406959667,-39686.92289447,0.000385,30]
[331437275,1720406959695,-162965.35103,0.000385,30]
[331437276,1720406961361,-63063.30321038,0.000385,30]
[331437372,1720407038457,-1662.013679,0.00038264,4]
[331437374,1720407038467,-753.47144325,0.00038436,2]
[331437376,1720407038477,-34410.42286515,0.000385,30]
[331437378,1720407038486,-1806.12861046,0.00038536,4]
[331437379,1720407038496,-199.48958882,0.00038541,2]
[331437381,1720407038506,-300.0,0.00038541,2]
[331437383,1720407038515,-510.20601581,0.00038541,2]
[331437385,1720407038524,-288.77894306,0.00038541,2]
[331437387,1720407038534,-317.93960713,0.00038541,2]
[331437389,1720407038544,-283.68646285,0.00038541,2]
[331437391,1720407038553,-153.14792914,0.00038541,2]
[331437393,1720407038563,-160.94297725,0.00039177,4]
[331437395,1720407038573,-261.33237172,0.00039393,4]
[331437397,1720407038582,-275.61345466,0.00039799,31]
[331437399,1720407038591,-249.35671403,0.00039799,7]
[331437400,1720407038601,-1783.89613505,0.000398,2]
[331437402,1720407038611,-183.53241814,0.0003988,120]
[331437404,1720407038621,-151.0,0.0004,120]
[331437406,1720407038631,-5592.44841749,0.00042999,4]
[331437408,1720407038640,-1274.21258136,0.00043287,60]
[331437410,1720407038650,-151.0,0.00043342,120]
[331437411,1720407038659,-1783.89613503,0.00044914,2]
[331437412,1720407038669,-160.22081,0.00045167,2]
[331437413,1720407038678,-153.0,0.00045315,2]
[331437414,1720407038687,-153.0,0.00045315,2]
[331437415,1720407038697,-153.0,0.00045315,2]
[331437416,1720407038706,-153.0,0.00045315,2]
[331437417,1720407038716,-999.0,0.00046575,120]
[331437418,1720407038725,-151.0,0.00046685,120]
[331437419,1720407038734,-170.211887,0.00046849,2]
[331437420,1720407038744,-999.0,0.00047123,120]
[331437421,1720407038753,-999.0,0.00047671,120]
[331437422,1720407038763,-999.0,0.00048219,120]
[331437423,1720407038772,-999.0,0.00048767,120]
[331437424,1720407038782,-753.47144325,0.00049118,2]
[331437425,1720407038791,-999.0,0.00049315,120]
[331437426,1720407038801,-184.20368363,0.00049863,120]
[331437427,1720407038811,-1477.24276547,0.0005,7]
[331437428,1720407038821,-151.0,0.00050027,120]
[331437429,1720407038831,-1783.89613503,0.00050028,2]
[331437430,1720407038840,-2523.76173422,0.00051,14]
[331437431,1720407038850,-363.208363,0.00051,85]
[331437432,1720407038864,-2879.54544911,0.000528,120]
[331437433,1720407038874,-4501.75547339,0.000528,120]
[331437434,1720407038884,-401.28065198,0.00053,120]
[331437435,1720407038894,-197.65516536,0.000533,120]
[331437436,1720407038903,-151.0,0.0005337,120]
[331437437,1720407038913,-150.29238822,0.000546,2]
[331437438,1720407038923,-13534.16,0.00054765,3]
[331437439,1720407038936,-19489.19,0.00054775,3]
[331437440,1720407038946,-16240.99,0.00054775,3]
[331437441,1720407038955,-23387.03,0.00054785,3]
[331437442,1720407038965,-1806.12861046,0.00054785,6]
[331437443,1720407038977,-500.0,0.00054795,120]
[331437444,1720407038987,-500.0,0.00054795,120]
[331437445,1720407038997,-500.0,0.00054795,120]
[331437446,1720407039008,-500.0,0.00054795,120]
[331437447,1720407039019,-500.0,0.00054795,120]
[331437448,1720407039029,-500.0,0.00054795,120]
[331437449,1720407039039,-500.0,0.00054795,120]
[331437450,1720407039049,-500.0,0.00054795,120]
[331437451,1720407039059,-500.0,0.00054795,120]
[331437452,1720407039070,-500.0,0.00054795,120]
[331437453,1720407039080,-500.0,0.00054795,120]
[331437454,1720407039091,-500.0,0.00054795,120]
[331437455,1720407039101,-500.0,0.00054795,120]
[331437456,1720407039112,-500.0,0.00054795,120]
[331437457,1720407039122,-500.0,0.00054795,120]
[331437458,1720407039132,-500.0,0.00054795,120]
[331437459,1720407039142,-500.0,0.00054795,120]
[331437460,1720407039153,-486.39035117,0.00054795,120]
[331437461,1720407039163,-500.0,0.00054795,120]
[331437462,1720407039174,-500.0,0.00054795,120]
[331437463,1720407039185,-500.0,0.00054795,120]
[331437464,1720407039195,-552.10613025,0.00054795,120]
[331437465,1720407039206,-500.0,0.00054795,120]
[331437466,1720407039216,-500.0,0.00054795,120]
[331437467,1720407039227,-500.0,0.00054795,120]
[331437468,1720407039236,-500.0,0.00054795,120]
[331437469,1720407039247,-500.0,0.00054795,120]
[331437470,1720407039257,-500.0,0.00054795,120]
[331437471,1720407039267,-500.0,0.00054795,120]
[331437472,1720407039277,-500.0,0.00054795,120]
[331437473,1720407039288,-500.0,0.00054795,120]
[331437474,1720407039298,-500.0,0.00054795,120]
[331437475,1720407039309,-500.0,0.00054795,120]
[331437476,1720407039319,-500.0,0.00054795,120]
[331437477,1720407039329,-1783.89613503,0.00055142,2]
[331437478,1720407039339,-151.0,0.00056712,120]
[331437479,1720407039349,-4976.9635584,0.00058578,2]
[331437480,1720407039359,-4976.9635584,0.00058873,2]
[331437481,1720407039369,-4976.9635584,0.00059093,2]
[331437482,1720407039379,-4976.9635584,0.00059257,2]
[331437483,1720407039389,-1806.12861046,0.00059479,7]
[331437484,1720407039399,-4976.9635584,0.00059511,2]
[331437485,1720407039409,-170.211887,0.00059726,2]
[331437486,1720407039418,-753.47144325,0.000598,2]
[331437487,1720407039428,-4976.9635584,0.00059816,2]
[331437488,1720407039438,-3612.25722092,0.0005989,7]
[331437489,1720407039448,-406.52169466,0.00059899,120]
[331437490,1720407039458,-500.0,0.00059899,120]
[331437491,1720407039468,-500.0,0.00059899,120]
[331437492,1720407039478,-500.0,0.00059899,120]
[331437493,1720407039487,-500.0,0.00059899,120]
[331437494,1720407039496,-500.0,0.00059899,120]
[331437495,1720407039506,-500.0,0.00059899,120]
[331437496,1720407039516,-281.09173938,0.00059899,120]
[331437497,1720407039526,-500.0,0.00059899,120]
[331437498,1720407039536,-500.0,0.00059899,120]
[331437499,1720407039546,-500.0,0.00059899,120]
[331437500,1720407039556,-500.0,0.00059899,120]
[331437501,1720407039567,-500.0,0.00059899,120]
[331437502,1720407039577,-500.0,0.00059899,120]
[331437503,1720407039587,-500.0,0.00059899,120]
[331437504,1720407039598,-500.0,0.00059899,120]
[331437505,1720407039609,-500.0,0.00059899,120]
[331437506,1720407039620,-500.0,0.00059899,120]
[331437507,1720407039630,-500.0,0.00059899,120]
[331437508,1720407039639,-500.0,0.00059899,120]
[331437509,1720407039650,-484.99126213,0.00059899,120]
[331437510,1720407039660,-500.0,0.00059899,120]
[331437511,1720407039670,-500.0,0.00059899,120]
[331437512,1720407039679,-500.0,0.00059899,120]
[331437513,1720407039689,-500.0,0.00059899,120]
[331437514,1720407039699,-500.0,0.00059899,120]
[331437515,1720407039709,-500.0,0.00059899,120]
[331437516,1720407039719,-500.0,0.00059899,120]
[331437517,1720407039728,-500.0,0.00059899,120]
[331437518,1720407039738,-500.0,0.00059899,120]
[331437519,1720407039748,-500.0,0.00059899,120]
[331437520,1720407039758,-500.0,0.00059899,120]
[331437521,1720407039768,-500.0,0.00059899,120]
[331437522,1720407039778,-500.0,0.00059899,120]
[331437523,1720407039789,-88888.0,0.000599,120]
[331437524,1720407039805,-1806.12861046,0.0005999,7]
[331437525,1720407039816,-1099.98029218,0.0006,120]
[331437526,1720407039826,-42503.00410136,0.0006,35]
[331437529,1720407039836,-2740.23917165,0.0006,120]
[331437531,1720407039847,-682.10612986,0.0006,12]
[331437532,1720407039860,-1393.76767121,0.0006,120]
[331437533,1720407039870,-1602.26444043,0.0006,120]
[331437534,1720407039881,-277.339303,0.0006,120]
[331437535,1720407039891,-277.339303,0.0006,120]
[331437536,1720407039902,-151.0,0.0006,7]
[331437537,1720407039913,-905.96,0.0006,120]
[331437538,1720407039928,-151.0,0.0006,7]
[331437539,1720407039938,-151.0,0.0006,120]
[331437540,1720407039948,-154.791805,0.0006,120]
[331437542,1720407039958,-154.030342,0.0006,120]
[331437543,1720407039969,-2147.359276,0.0006,120]
[331437544,1720407039979,-2147.359276,0.0006,120]
[331437546,1720407039989,-348.566438,0.0006,120]
[331437547,1720407040000,-348.566438,0.0006,120]
[331437548,1720407040010,-1000.0,0.0006,40]
[331437550,1720407040020,-1000.0,0.0006,40]
[331437557,1720407040115,-1000.0,0.0006,40]
[331437559,1720407040126,-1000.0,0.0006,40]
[331437561,1720407040136,-1000.0,0.0006,40]
[331437563,1720407040146,-1000.0,0.0006,40]
[331437565,1720407040157,-1000.0,0.0006,40]
[331437567,1720407040167,-1000.0,0.0006,40]
[331437569,1720407040177,-151.0,0.0006,120]
[331437571,1720407040186,-1000.0,0.0006,40]
[331437573,1720407040196,-1000.0,0.0006,40]
[331437575,1720407040206,-1000.0,0.0006,40]
[331437577,1720407040216,-151.0,0.0006,120]
[331437579,1720407040225,-1000.0,0.0006,40]
[331437581,1720407040235,-1000.0,0.0006,40]
[331437583,1720407040245,-1000.0,0.0006,40]
[331437585,1720407040256,-1000.0,0.0006,40]
[331437587,1720407040266,-1000.0,0.0006,40]
[331437589,1720407040276,-1000.0,0.0006,40]
[331437591,1720407040286,-1000.0,0.0006,40]
[331437593,1720407040295,-1000.0,0.0006,40]
[331437595,1720407040304,-1000.0,0.0006,40]
[331437597,1720407040314,-1000.0,0.0006,40]
[331437599,1720407040323,-1000.0,0.0006,40]
[331437601,1720407040332,-1000.0,0.0006,40]
[331437603,1720407040341,-1000.0,0.0006,40]
[331437605,1720407040350,-1000.0,0.0006,40]
[331437607,1720407040364,-1000.0,0.0006,40]
[331437609,1720407040374,-1000.0,0.0006,40]
[331437611,1720407040383,-1000.0,0.0006,40]
[331437612,1720407040393,-1000.0,0.0006,40]
[331437614,1720407040402,-1000.0,0.0006,40]
[331437616,1720407040412,-1000.0,0.0006,40]
[331437618,1720407040421,-1000.0,0.0006,40]
[331437620,1720407040431,-1000.0,0.0006,40]
[331437622,1720407040441,-1000.0,0.0006,40]
[331437624,1720407040450,-1000.0,0.0006,40]
[331437626,1720407040460,-1000.0,0.0006,40]
[331437628,1720407040470,-1000.0,0.0006,40]
[331437630,1720407040479,-1000.0,0.0006,40]
[331437632,1720407040488,-1000.0,0.0006,40]